Cogmind - Beta 11.1 @@@ ROGUE MODE // 2022.05.01 @ 04:55:58 Player: Olga Result: Self-destructed Performance ------------- Evolutions (1) 500 Regions Visited (2) 400 Robots Destroyed (3) 15 Value Destroyed (30) 30 Prototype IDs (0) 0 Alien Tech Used (0) 0 Bonus (0) 0 TOTAL SCORE: 945 Bonus ------- None Cogmind --------- Core Integrity 330/400 Matter 192/300 Energy 124/125 System Corruption 1% Temperature Cool (3) Movement Flying (34) Location -9/Materials Parts ------- > --- POWER (1) -------- Light Ion Engine > --- PROPULSION (3) --- Flight Unit Flight Unit Flight Unit > --- UTILITY (3) ------ Trap Scanner Terrain Scan Processor Targeting Computer > --- WEAPON (2) ------- Light Assault Rifle > --- INVENTORY (5) ---- Light Treads Wheel Peak State ------------ > --- POWER ------------ Light Ion Engine > --- PROPULSION ------- Flight Unit Flight Unit Flight Unit > --- UTILITY ---------- Trap Scanner Terrain Scan Processor Targeting Computer > --- WEAPON ----------- Light Assault Rifle > --- INVENTORY -------- Light Treads Wheel [Rating: 11] Favorites ----------- Power Light Ion Engine Engine Light Ion Engine Propulsion Flight Unit Flight Unit Flight Unit Utility Targeting Computer Device Trap Scanner Processor Targeting Computer Weapon Light Assault Rifle Ballistic Gun Light Assault Rifle Build | -11 -10 -9 ------- Run | Scr Mat Mat Slots Evolved 2 | . . 2 Power . | . . . Propulsion 1 | . . 1 Utility 1 | . . 1 Weapon . | . . . Parts Attached 11 | 1 5 5 Power 1 | . 1 . Engine 1 | . 1 . Core . | . . . Reactor . | . . . Propulsion 5 | . 2 3 Treads . | . . . Leg . | . . . Wheel . | . . . Hover . | . . . Flight 5 | . 2 3 Utility 3 | . 1 2 Device 1 | . . 1 Storage . | . . . Processor 2 | . 1 1 Hackware . | . . . Protection . | . . . Artifact . | . . . Weapon 2 | 1 1 . Energy Gun . | . . . Energy Cannon . | . . . Ballistic Gun 2 | 1 1 . Ballistic Cannon . | . . . Launcher . | . . . Special Weapon . | . . . Impact Weapon . | . . . Slashing Weapon . | . . . Piercing Weapon . | . . . Special Melee Weapon . | . . . Unidentified Prototypes . | . . . Parts Lost 3 | . . 3 Power . | . . . Propulsion 2 | . . 2 Utility . | . . . Weapon 1 | . . 1 Highest Loss Streak 2 | . . 2 To Critical Strikes . | . . . Average Slot Usage (%) 64 | . 30 86 Engine 8 | . 4 11 Flight 22 | . 8 32 Device 6 | . . 10 Processor 8 | . 2 13 Ballistic Gun 18 | . 16 20 Naked Turns . | . . . Heaviest Build 7 | 1 5 7 Greatest Support 12 | 3 8 12 Greatest Overweight (x) . | . . . Average Overweight (x) . | . . . Largest Inventory Capacity 5 | 5 5 5 Average Capacity 5 | 5 5 5 Most Carried 5 | 4 5 5 Average Carried 3 | 4 4 3 Final Capacity 5 | 5 5 5 Final Carried 5 | 4 5 2 Class Distribution -------------------- 100% | Mutant Dominant Class ---------------- Mutant | -10/Materials Mutant | -9/Materials Resources | -11 -10 -9 ----------- Run | Scr Mat Mat Matter Collected 200 | 200 . . Remotely . | . . . Salvage Created 48 | . 48 . Parts 4 | . 4 . Haulers Intercepted . | . . . Recyclers Shooed . | . . . Parts Field Recycled . | . . . Retrieved Matter . | . . . Parts Self-Destructed . | . . . Prevented . | . . . Kills | -11 -10 -9 ------- Run | Scr Mat Mat Combat Hostiles Destroyed 3 | . 3 . Guns 3 | . 3 . Classes Destroyed 1 | . 1 . Swarmer 3 | . 3 . Best Kill Streak 3 | . 3 . Combat Bots Only 3 | . 3 . Max Kills in Single Turn 1 | . 1 . Gunslinging . | . . . Exploded . | . . . Melee . | . . . Uniques/NPCs Destroyed . | . . . Combat | -11 -10 -9 -------- Run | Scr Mat Mat Damage Taken 370 | . 136 234 Core 154 | . 84 70 Absorbed by Shields . | . . . Core Remaining (%) 83 | 100 66 . Volleys Fired 12 | . 11 1 Largest 2 | . 1 2 Hottest 40 | . 20 40 Shots Fired 13 | . 11 2 Gun 13 | . 11 2 Cannon . | . . . Launcher . | . . . Special . | . . . Kinetic 13 | . 11 2 Thermal . | . . . Explosive . | . . . Electromagnetic . | . . . Robot Hit Streak 5 | . 5 3 Robot Miss Streak 2 | . 2 . Penetration Max . | . . . Secondary Targets . | . . . Shots Hit Robots 10 | . 8 2 Core Hits 4 | . 4 . Critical Kills 1 | . 1 . Critical Parts Destroyed 1 | . 1 . Critical Strikes 2 | . 2 . Destroy 2 | . 2 . Melee Attacks . | . . . Impact . | . . . Slashing . | . . . Piercing . | . . . Sneak Attacks . | . . . Combat Hostiles . | . . . Follow-up Attacks . | . . . Damage Inflicted 70 | . 55 15 Guns 70 | . 55 15 Cannons . | . . . Explosions . | . . . Melee . | . . . Ramming . | . . . Kinetic 70 | . 55 15 Thermal . | . . . Explosive . | . . . Electromagnetic . | . . . Impact . | . . . Slashing . | . . . Piercing . | . . . Highest Corruption 1 | . . 1 Average Corruption 1 | . . 1 Corruption Purged . | . . . Corruption Blocked . | . . . Overload Shots . | . . . Overflow Damage . | . . . Projectiles . | . . . Explosions . | . . . Melee . | . . . Knockbacks . | . . . Impact . | . . . Kinetic . | . . . Secondary . | . . . Self-Inflicted Damage . | . . . Shots . | . . . Rammed . | . . . Targets Rammed . | . . . Kicked . | . . . Crushed . | . . . Highest Temperature 12 | . . 12 Average Temperature 4 | . . 4 Received Heat Transfer 129 | . 30 99 Siege Activations . | . . . Robots Corrupted . | . . . Combat Hostiles . | . . . Parts Fried . | . . . Impact Corruptions . | . . . Robots Melted . | . . . Combat Hostiles . | . . . Parts Melted . | . . . Heat Transferred . | . . . Parts Sabotaged . | . . . Parts Stolen . | . . . Parts Stripped . | . . . Power Chain Reactions . | . . . Missiles Intercepted . | . . . Alert | -11 -10 -9 ------- Run | Scr Mat Mat Peak Influence 248 | . 130 248 Initial 54 | . . 54 Average 116 | . 72 148 Maximum Alert Level 1 | . . 1 Low Security (%) 87 | 100 100 79 Level 1 12 | . . 20 Level 2 . | . . . Level 3 . | . . . Level 4 . | . . . Level 5 . | . . . High Security . | . . . Max Security . | . . . Squads Dispatched 5 | . 2 3 Investigation 4 | . 1 3 Extermination . | . . . Reinforcement 1 | . 1 . Assault . | . . . Garrison . | . . . Intercept . | . . . Searches Triggered . | . . . Construction Impeded . | . . . Haulers Reinforced . | . . . Active Scanning Responses . | . . . Cargo Convoy Interrupts . | . . . Stealth | -11 -10 -9 --------- Run | Scr Mat Mat Distress Signals 1 | . . 1 Communications Jammed . | . . . Distress Signals . | . . . Times Spotted 30 | . 12 18 Peak Tracking Total 16 | . 7 16 Tactical Retreats 4 | . 1 3 Traps | -11 -10 -9 ------- Run | Scr Mat Mat Traps Triggered . | . . . Indirectly . | . . . Trap Hack Attempts . | . . . Triggered . | . . . Disarmed . | . . . Reprogrammed . | . . . Reused . | . . . Traps Extracted . | . . . Installed . | . . . Triggered . | . . . Machines | -11 -10 -9 ---------- Run | Scr Mat Mat Machines Disabled . | . . . Max in Single Turn . | . . . Machines Sabotaged . | . . . Garrisons Compromised . | . . . Overloaded Fab Kills . | . . . Hacking | -11 -10 -9 --------- Run | Scr Mat Mat Machines Accessed 8 | . 2 6 Terminals 8 | . 2 6 Fabricators . | . . . Repair Stations . | . . . Recycling Units . | . . . Scanalyzers . | . . . Garrison Access . | . . . Total Hacks 21 | . 6 15 Successful 4 | . 2 2 Failed 17 | . 4 13 Catastrophic 4 | . . 4 Database Lockouts . | . . . Manual 20 | . 5 15 Terminals 21 | . 6 15 Fabricators . | . . . Repair Stations . | . . . Recycling Units . | . . . Scanalyzers . | . . . Garrison Access . | . . . Terminal Hacks 4 | . 2 2 Branch Access Points 1 | . . 1 Terminal Index 2 | . 1 1 Zone Layout 1 | . 1 . Fabricator Hacks . | . . . Repair Station Hacks . | . . . Recycling Unit Hacks . | . . . Scanalyzer . | . . . Garrison Access Hacks . | . . . Unauthorized Hacks . | . . . Terminals . | . . . Fabricators . | . . . Repair Stations . | . . . Recycling Units . | . . . Scanalyzers . | . . . Garrison Access . | . . . Data Cores Recovered . | . . . Used . | . . . Hacking Detections 8 | . 2 6 Full Trace Events 6 | . 1 5 Feedback Events 1 | . . 1 Corruption 1 | . . 1 Feedback Blocked . | . . . Robot Schematics Acquired . | . . . Robots Built . | . . . Authchips . | . . . Time . | . . . Total Robot Build Rating . | . . . Part Schematics Acquired . | . . . Parts Built . | . . . Authchips . | . . . Time . | . . . Total Part Build Rating . | . . . Parts Repaired . | . . . Time . | . . . Parts Recycled . | . . . Recycled Matter . | . . . Retrieved Matter . | . . . Retrieved Components . | . . . Parts Scanalyzed . | . . . Part Schematics Acquired . | . . . Parts Damaged . | . . . Bothacking | -11 -10 -9 ------------ Run | Scr Mat Mat Used RIF Installer . | . . . Robots Hacked . | . . . Non-combat . | . . . Combat . | . . . Robot Hacks Applied . | . . . Relay Couplers Released . | . . . Fabnet Peak Effective % . | . . . Robots Rewired . | . . . Allies Hacked . | . . . Hacks Repelled . | . . . Allies | -11 -10 -9 -------- Run | Scr Mat Mat Total Allies . | . . . Largest Group . | . . . Highest-Rated Group . | . . . Highest-Rated Ally . | . . . Total Orders . | . . . Ally Attacks . | . . . Total Damage . | . . . Kills . | . . . Allies Corrupted . | . . . Allies Melted . | . . . Intel | -11 -10 -9 ------- Run | Scr Mat Mat Robot Analysis Total . | . . . Derelict Logs Recovered . | . . . Drone Launches . | . . . Drone Recoveries . | . . . Exploration | -11 -10 -9 ------------- Run | Scr Mat Mat Turns Passed 181 | 1 75 105 Spaces Moved 375 | 1 94 280 Core 49 | 1 48 . Treads . | . . . Legs . | . . . Wheels . | . . . Hover . | . . . Flight 326 | . 46 280 Fastest Speed 34 | 50 37 34 Average Speed 36 | 50 43 34 Slowest Speed 50 | 50 50 37 Overloaded Moves . | . . . Propulsion Burnouts . | . . . Robots Hopped 8 | . 3 5 Cave-ins Triggered . | . . . Exploration Rate (%) 23 | 2 30 38 Regions Visited 2 Branch Regions . Pre-discovered Areas . | . . . Known Exits Taken . | . . . Unknown Exits Taken 2 | 1 1 . Scrap Searched . | . . . Spaces Dug . | . . . Terrain Destroyed . | . . . Melee . | . . . Projectile . | . . . AOE . | . . . Terrain Rammed . | . . . Walls Destroyed . | . . . Machines Disabled . | . . . Actions | -11 -10 -9 --------- Run | Scr Mat Mat Total 397 | 1 114 282 Wait 4 | . 4 . Move 357 | . 87 270 Hop 8 | . 3 5 Pick Up 4 | . 3 1 Fast Attach 5 | . 4 1 Attach 6 | 1 1 4 Detach . | . . . Swap . | . . . Drop 1 | . 1 . Fire 12 | . 11 1 Melee . | . . . Ram . | . . . Kick . | . . . Crush . | . . . Escape Stasis . | . . . Rewire . | . . . Trap . | . . . Miscellaneous . | . . . Route ------- -11/Scrapyard -10/Materials (discovered 2 exits: *Mat / [Min]) -9/Materials (discovered 2 exits: *Min / *Sto) History --------- Turn | Location | Event 1 | -11/Scrapyard | Released all parts (6) 2 | -11/Scrapyard | Discovered new exit (range 0) 2 | -11/Scrapyard | Entered Materials 60 | -10/Materials | Discovered new exit (range 17) 60 | -10/Materials | Discovered new exit (range 18) 77 | -10/Materials | Entered another Materials area 77 | -9/Materials | Evolved 2 slots: Propulsion x1, Utility x1 112 | -9/Materials | Discovered new exit (range 12) 113 | -9/Materials | Discovered new exit (range 12) 128 | -9/Materials | Identified exit to Mines 128 | -9/Materials | Identified exit to Storage 182 | -9/Materials | Self-destructed Last Messages --------------- (70,50) Storage Map updated. 00129_ K-01 Serf collects debris. 00131_ Connecting with Terminal... 00131_ ALERT: Suspicious activity at Terminal M003. Dispatching Investigation squad. 00132_ K-01 Serf collects debris. 00133_ Connecting with Terminal... 00133_ ALERT: Suspicious activity at Terminal M010. Dispatching Investigation squad. 00135_ W-16 Scout sends out distress signal. 00135_ K-01 Serf collects debris. 00159_ Flight Unit destroyed. 00160_ Lgt. Assault Rifle destroyed. 00166_ Acquired Terrain Scan Processor. 00175_ Connecting with Terminal... Feedback: System corruption (+1%). 00175_ ALERT: Suspicious activity at Terminal M007. Dispatching Investigation squad. 00182_ Connecting with Terminal... Map ----- +----------------------------------------------------+ | | | | | | | | | | | | | | | | | | | | | | | | | | | | | | | ??????????????????????????????? | | ???????#########??????????????? | | ####???# ########???????? | | ##### #???????? | | #???????? | | #???????? | | #???????? | | ##### #???????? | | +####??# ###+##+#######?? | | #??####+##### #?? | | #??# # @T #? | | #??# """"" # Y #?? | | "" #??# """"" # ]]] #?? | | S"" #??# """"" # ]] #?? | | "" #??# # = ]] #?? | | #####??# # [ #?? | | ???????# "T" #############?? | | ???????# """ #??# #??????? | | ???????# #??# #??????? | | ???????##########??# #??????? | | ???????????????????# #??????? | | ???????????????????# #??????? | | ????????######?????# #####??? | | ???#???? #?????# !!#??? | | ???# ?? #?????# !!#??? | | ???# """ #?????# !!#??? | | ???# """"" *#?????# !#??? | | ???# """"" #?????# !!#??? | | ???# """"" #?????# !!#??? | | ???# """ #?????# #####??? | | ???# #????## ##?????? | | ########+########## #?????? | | #?????? | | #?????? | | ^ #?????? | +----------------------------------------------------+ Best States ------------- Heat Dissipation 28 Energy Generation 10 Energy Capacity 125 Matter Stores 290 Matter Capacity 300 Sight Range 16 Terrain Scan Density 85 Evasion (%) 63 Targeting Accuracy 5 Item Schematics ----------------- None Robot Schematics ------------------ None Fabricated ------------ Nothing Alien Tech Used ----------------- None Achievements -------------- None Challenges ------------ None Game ------ Seed DeliveryIntegratedUnit Manual? 0 Play Time 00:08:20 Cumulative 138.8 hours Start 2022.05.01 @ 04:50:51 End 2022.05.01 @ 04:55:58 Sessions 1 Manual Loads 0 Difficulty Rogue Special Mode None Game No. 192 Rogue 191 Adventurer 0 Explorer 1 Win Type - Total 5 Types 5/0/0/0/0/0/0/0/0 Lore% 59 Gallery% 60 Achievement% 50 Wizard Run 0 Options --------- ASCII 1 Keyboard 0 Movement Vi Keybinds 0 Fullscreen 1 Font 18/SmallcapsGlow Map View 76x50 Tactical HUD 1 Map Filters NONE Filters NONE Steam 1 RUN: 7833741c-c327-47da-856a-bd072ac50be1